fUST/lending_fUST_20250701
["ID","MTS","AMOUNT","RATE_DAILY","PERIOD"]
[368804048,1751368242215,-460.0,0.00018139,2]
[368804050,1751368242224,-460.0,0.00018139,2]
[368804052,1751368242233,-460.0,0.00018139,2]
[368804054,1751368242243,-460.0,0.00018139,2]
[368804056,1751368242252,-460.0,0.00018139,2]
[368804058,1751368242262,-543.95,0.00018139,2]
[368804060,1751368242273,-460.0,0.00018139,2]
[368804062,1751368242283,-460.0,0.00018139,2]
[368804064,1751368242293,-488.94,0.00018139,2]
[368804066,1751368242302,-460.0,0.00018139,2]
[368804068,1751368242313,-460.0,0.00018139,2]
[368804070,1751368242324,-460.0,0.00018139,2]
[368804072,1751368242336,-460.0,0.00018139,2]
[368804074,1751368242345,-460.0,0.00018139,2]
[368804076,1751368242354,-460.0,0.00018139,2]
[368804078,1751368242364,-460.0,0.00018139,2]
[368804080,1751368242373,-460.0,0.00018139,2]
[368804082,1751368242383,-447.56376376,0.00018139,2]
[368804084,1751368242392,-460.0,0.00018139,2]
[368804086,1751368242403,-460.0,0.00018139,2]
[368804088,1751368242412,-460.0,0.00018139,2]
[368804090,1751368242423,-460.0,0.00018139,2]
[368804092,1751368242433,-460.0,0.00018139,2]
[368804094,1751368242443,-460.0,0.00018139,2]
[368804096,1751368242452,-460.0,0.00018139,2]
[368804098,1751368242462,-460.0,0.00018139,2]
[368804100,1751368242471,-460.0,0.00018139,2]
[368804102,1751368242481,-460.0,0.00018139,2]
[368804104,1751368242491,-460.0,0.00018139,2]
[368804106,1751368242500,-529.35,0.00018139,2]
[368804108,1751368242510,-628.41,0.00018139,2]
[368804110,1751368242520,-506.63,0.00018139,2]
[368804112,1751368242530,-460.0,0.00018139,2]
[368804115,1751368242541,-460.0,0.00018139,2]
[368804117,1751368242551,-565.05,0.00018139,2]
[368804119,1751368242561,-460.0,0.00018139,2]
[368804121,1751368242571,-460.0,0.00018139,2]
[368804123,1751368242580,-460.0,0.00018139,2]
[368804125,1751368242590,-515.53,0.00018139,2]
[368804127,1751368242599,-460.0,0.00018139,2]
[368804129,1751368242609,-492.86,0.00018139,2]
[368804130,1751368242618,-460.0,0.00018139,2]
[368804132,1751368242627,-460.0,0.00018139,2]
[368804134,1751368242637,-460.0,0.00018139,2]
[368804136,1751368242646,-460.0,0.00018139,2]
[368804138,1751368242655,-460.0,0.00018139,2]
[368804140,1751368242665,-460.0,0.00018139,2]
[368804142,1751368242675,-460.0,0.00018139,2]
[368804144,1751368242684,-460.0,0.00018139,2]
[368804146,1751368242694,-724.12,0.00018139,2]
[368804148,1751368242703,-460.0,0.00018139,2]
[368804150,1751368242713,-460.0,0.00018139,2]
[368804152,1751368242729,-460.0,0.00018139,2]
[368804154,1751368242739,-460.0,0.00018139,2]
[368804156,1751368242749,-460.0,0.00018139,2]
[368804159,1751368242759,-460.0,0.00018139,2]
[368804160,1751368242768,-460.0,0.00018139,2]
[368804162,1751368242778,-460.0,0.00018139,2]
[368804165,1751368242789,-460.0,0.00018139,2]
[368804166,1751368242799,-460.0,0.00018139,2]
[368804168,1751368242809,-460.0,0.00018139,2]
[368804171,1751368242819,-460.0,0.00018139,2]
[368804173,1751368242829,-460.0,0.00018139,2]
[368804175,1751368242839,-460.0,0.00018139,2]
[368804177,1751368242848,-460.0,0.00018139,2]
[368804179,1751368242858,-460.0,0.00018139,2]
[368804181,1751368242868,-460.0,0.00018139,2]
[368804183,1751368242877,-460.0,0.00018139,2]
[368804185,1751368242886,-500.0,0.00018139,2]
[368804187,1751368242896,-211.6603477,0.0001814,2]
[368804189,1751368242905,-460.0,0.0001814,2]
[368804191,1751368242915,-460.0,0.0001814,2]
[368804193,1751368242924,-460.0,0.0001814,2]
[368804195,1751368242935,-460.0,0.0001814,2]
[368804197,1751368242944,-872.81,0.0001814,2]
[368804200,1751368242954,-460.0,0.0001814,2]
[368804201,1751368242966,-460.0,0.0001814,2]
[368804204,1751368242976,-460.0,0.0001814,2]
[368804206,1751368242986,-460.0,0.0001814,2]
[368804208,1751368242995,-460.0,0.0001814,2]
[368804210,1751368243005,-460.0,0.0001814,2]
[368804212,1751368243015,-460.0,0.0001814,2]
[368804214,1751368243024,-460.0,0.0001814,2]
[368804216,1751368243033,-591.39,0.0001814,2]
[368804218,1751368243043,-460.0,0.0001814,2]
[368804220,1751368243053,-248.22323485,0.00018157,2]
[368804222,1751368243063,-460.0,0.00018207,2]
[368804224,1751368243072,-460.0,0.00018207,2]
[368804226,1751368243081,-460.0,0.00018207,2]
[368804228,1751368243090,-460.0,0.00018207,2]
[368804231,1751368243100,-460.0,0.00018207,2]
[368804234,1751368243109,-460.0,0.00018207,2]
[368804237,1751368243119,-460.0,0.00018207,2]
[368804239,1751368243128,-460.0,0.00018241,2]
[368804241,1751368243138,-460.0,0.00018241,2]
[368804243,1751368243147,-460.0,0.00018241,2]
[368804245,1751368243156,-588.89,0.00018241,2]
[368804247,1751368243166,-460.0,0.00018241,2]
[368804249,1751368243175,-460.0,0.00018241,2]
[368804251,1751368243185,-460.0,0.00018241,2]
[368804252,1751368243194,-487.17,0.00018241,2]
[368804254,1751368243203,-460.0,0.00018314,2]
[368804256,1751368243214,-551.6,0.00018314,2]
[368804258,1751368243223,-557.51,0.00018314,2]
[368804260,1751368243234,-460.0,0.00018314,2]
[368804262,1751368243244,-460.0,0.00018314,2]
[368804264,1751368243253,-990.71,0.00018314,2]
[368804266,1751368243263,-460.0,0.00018314,2]
[368804268,1751368243273,-721.14,0.00018314,2]
[368804271,1751368243283,-500.0,0.00018412,2]
[368804273,1751368243293,-478.19,0.00018413,2]
[368804275,1751368243308,-460.0,0.00018413,2]
[368804277,1751368243318,-460.0,0.00018413,2]
[368804279,1751368243327,-248.68921015,0.00018413,2]
[368804281,1751368243336,-514.17330706,0.00018413,2]
[368804283,1751368243346,-460.0,0.00018413,2]
[368804285,1751368243355,-431.82009668,0.00018413,2]
[368804287,1751368243364,-460.0,0.00018413,2]
[368804289,1751368243374,-478.72,0.00018413,2]
[368804291,1751368243384,-457.86,0.00018413,2]
[368804293,1751368243393,-460.0,0.00018413,2]
[368804295,1751368243403,-460.0,0.00018413,2]
[368804297,1751368243412,-460.0,0.00018413,2]
[368804299,1751368243421,-460.0,0.00018413,2]
[368804301,1751368243431,-460.0,0.00018413,2]
[368804303,1751368243440,-460.0,0.00018413,2]
[368804305,1751368243450,-460.0,0.00018413,2]
[368804307,1751368243459,-585.13,0.00018413,2]
[368804309,1751368243469,-460.0,0.00018413,2]
[368804311,1751368243478,-460.0,0.00018413,2]
[368804313,1751368243488,-460.0,0.00018413,2]
[368804315,1751368243497,-628.41,0.00018413,2]
[368804317,1751368243507,-506.63,0.00018413,2]
[368804319,1751368243517,-460.0,0.00018413,2]
[368804321,1751368243526,-565.05,0.00018413,2]
[368804323,1751368243536,-460.0,0.00018413,2]
[368804325,1751368243546,-460.0,0.00018413,2]
[368804327,1751368243556,-460.0,0.00018413,2]
[368804329,1751368243565,-492.86,0.00018413,2]
[368804331,1751368243575,-460.0,0.00018413,2]
[368804333,1751368243584,-460.0,0.00018413,2]
[368804335,1751368243593,-460.0,0.00018413,2]
[368804337,1751368243603,-460.0,0.00018413,2]
[368804339,1751368243613,-460.0,0.00018413,2]
[368804341,1751368243623,-460.0,0.00018413,2]
[368804344,1751368243632,-460.0,0.00018413,2]
[368804347,1751368243644,-460.0,0.00018413,2]
[368804349,1751368243653,-724.12,0.00018413,2]
[368804351,1751368243663,-460.0,0.00018413,2]
[368804353,1751368243672,-460.0,0.00018413,2]
[368804355,1751368243682,-225.89956223,0.00018413,2]
[368804357,1751368243693,-460.0,0.00018413,2]
[368804359,1751368243702,-460.0,0.00018413,2]
[368804361,1751368243716,-460.0,0.00018413,2]
[368804376,1751368243850,-460.0,0.00018413,2]
[368804378,1751368243859,-460.0,0.00018413,2]
[368804380,1751368243869,-460.0,0.00018413,2]
[368804382,1751368243879,-460.0,0.00018413,2]
[368804384,1751368243889,-460.0,0.00018413,2]
[368804386,1751368243898,-460.0,0.00018413,2]
[368804388,1751368243908,-460.0,0.00018413,2]
[368804391,1751368243918,-460.0,0.00018413,2]
[368804392,1751368243928,-460.0,0.00018413,2]
[368804395,1751368243939,-460.0,0.00018414,2]
[368804397,1751368243949,-460.0,0.00018414,2]
[368804399,1751368243959,-460.0,0.00018414,2]
[368804401,1751368243968,-460.0,0.00018414,2]
[368804402,1751368243977,-872.81,0.00018414,2]
[368804403,1751368243987,-460.0,0.00018414,2]
[368804405,1751368243997,-514.56,0.00018414,2]
[368804407,1751368244006,-460.0,0.00018414,2]
[368804409,1751368244016,-460.0,0.00018414,2]
[368804411,1751368244026,-460.0,0.00018414,2]
[368804413,1751368244036,-460.0,0.00018414,2]
[368804415,1751368244045,-460.0,0.00018414,2]
[368804417,1751368244055,-591.39,0.00018414,2]
[368804419,1751368244065,-460.0,0.00018414,2]
[368804421,1751368244075,-500.0,0.00018421,2]
[368804423,1751368244084,-1000.0,0.00018421,2]
[368804425,1751368244094,-460.0,0.00018481,2]
[368804427,1751368244103,-154.68,0.00018481,2]
[368804429,1751368244113,-460.0,0.00018481,2]
[368804431,1751368244122,-460.0,0.00018481,2]
[368804433,1751368244131,-460.0,0.00018481,2]
[368804435,1751368244141,-223.0,0.0001851,2]
[368804437,1751368244150,-204.56,0.00018515,2]
[368804439,1751368244161,-170.94,0.00018515,2]
[368804441,1751368244171,-407.91,0.00018588,2]
[368804443,1751368244182,-582.07,0.00018588,2]
[368804445,1751368244192,-990.71,0.00018588,2]
[368804447,1751368244202,-460.0,0.00018588,2]
[368804449,1751368244212,-721.14,0.00018588,2]
[368804451,1751368244221,-183.77669004,0.00018687,2]
[368804453,1751368244232,-412.77,0.00018687,2]
[368804455,1751368244242,-460.0,0.00018687,2]
[368804458,1751368244253,-460.0,0.00018687,2]
[368804460,1751368244263,-366.71554263,0.00018687,2]
[368804462,1751368244272,-460.0,0.00018687,2]
[368804464,1751368244282,-499.96,0.00018687,2]
[368804466,1751368244291,-460.0,0.00018687,2]
[368804468,1751368244301,-460.0,0.00018687,2]
[368804470,1751368244311,-460.0,0.00018687,2]
[368804472,1751368244320,-460.0,0.00018687,2]
[368804474,1751368244330,-460.0,0.00018687,2]
[368804476,1751368244340,-628.41,0.00018687,2]
[368804478,1751368244350,-506.63,0.00018687,2]
[368804480,1751368244360,-565.05,0.00018687,2]
[368804482,1751368244369,-460.0,0.00018687,2]
[368804484,1751368244378,-180.72,0.00018687,2]
[368804486,1751368244387,-492.86,0.00018687,2]
[368804488,1751368244396,-460.0,0.00018687,2]
[368804490,1751368244408,-460.0,0.00018687,2]
[368804492,1751368244417,-460.0,0.00018687,2]
[368804494,1751368244427,-460.0,0.00018687,2]
[368804496,1751368244436,-460.0,0.00018687,2]
[368804498,1751368244445,-460.0,0.00018687,2]
[368804500,1751368244454,-460.0,0.00018687,2]
[368804502,1751368244464,-724.12,0.00018687,2]
[368804504,1751368244474,-460.0,0.00018687,2]
[368804506,1751368244484,-460.0,0.00018687,2]
[368804508,1751368244493,-460.0,0.00018687,2]
[368804510,1751368244503,-460.0,0.00018687,2]
[368804512,1751368244512,-460.0,0.00018687,2]
[368804514,1751368244523,-553.40105927,0.00018687,2]
[368804516,1751368244532,-460.0,0.00018687,2]
[368804518,1751368244542,-607.42,0.00018687,2]
[368804520,1751368244551,-460.0,0.00018687,2]
[368804522,1751368244560,-460.0,0.00018687,2]
[368804524,1751368244569,-167.42,0.00018687,2]
[368804526,1751368244579,-460.0,0.00018687,2]
[368804549,1751368244797,-460.0,0.00018687,2]
[368804551,1751368244807,-460.0,0.00018687,2]
[368804553,1751368244816,-460.0,0.00018688,2]
[368804555,1751368244826,-460.0,0.00018688,2]
[368804557,1751368244836,-294.27,0.00018688,2]
[368804559,1751368244846,-322.35,0.00018688,2]
[368804561,1751368244856,-872.81,0.00018688,2]
[368804563,1751368244866,-460.0,0.00018688,2]
[368804565,1751368244876,-460.0,0.00018688,2]
[368804567,1751368244887,-460.0,0.00018688,2]
[368804569,1751368244896,-460.0,0.00018688,2]
[368804571,1751368244905,-460.0,0.00018688,2]
[368804573,1751368244915,-460.0,0.00018688,2]
[368804575,1751368244924,-591.39,0.00018688,2]
[368804577,1751368244933,-212.41,0.00018688,2]
[368804579,1751368244944,-500.0,0.00018754,2]
[368804581,1751368244954,-460.0,0.00018755,2]
[368804583,1751368244965,-501.26,0.00018755,2]
[368804585,1751368244976,-460.0,0.00018755,2]
[368804588,1751368244986,-1692.73656882,0.00018861,2]
[368804590,1751368244996,-990.71,0.00018862,2]
[368804592,1751368245006,-460.0,0.00018862,2]
[368804594,1751368245015,-721.14,0.00018862,2]
[368804596,1751368245025,-1229.03705915,0.000189,2]
[368804598,1751368245035,-1676.80259768,0.000189,2]
[368804600,1751368245044,-460.0,0.00018961,2]
[368804602,1751368245053,-460.0,0.00018961,2]
[368804604,1751368245063,-167.86,0.00018961,2]
[368804606,1751368245072,-519.93476172,0.00018961,2]
[368804608,1751368245081,-472.85677723,0.00018961,2]
[368804610,1751368245090,-460.0,0.00018961,2]
[368804612,1751368245099,-628.41,0.00018961,2]
[368804614,1751368245108,-506.63,0.00018961,2]
[368804616,1751368245117,-565.05,0.00018961,2]
[368804618,1751368245126,-460.0,0.00018961,2]
[368804620,1751368245136,-492.86,0.00018961,2]
[368804622,1751368245145,-460.0,0.00018961,2]
[368804624,1751368245154,-460.0,0.00018961,2]
[368804625,1751368245164,-460.0,0.00018961,2]
[368804627,1751368245173,-460.0,0.00018961,2]
[368804629,1751368245182,-460.0,0.00018961,2]
[368804631,1751368245191,-460.0,0.00018961,2]
[368804633,1751368245200,-724.12,0.00018961,2]
[368804634,1751368245209,-293.28,0.00018961,2]
[368804636,1751368245218,-460.0,0.00018961,2]
[368804638,1751368245227,-460.0,0.00018961,2]
[368804640,1751368245237,-528.79,0.00018961,2]
[368804642,1751368245246,-460.0,0.00018961,2]
[368804644,1751368245256,-498.45,0.00018961,2]
[368804646,1751368245265,-460.0,0.00018961,2]
[368804648,1751368245274,-479.29,0.00018961,2]
[368804650,1751368245284,-460.0,0.00018961,2]
[368804652,1751368245294,-460.0,0.00018962,2]
[368804654,1751368245303,-507.76,0.00018962,2]
[368804655,1751368245312,-872.81,0.00018962,2]
[368804657,1751368245321,-460.0,0.00018962,2]
[368804659,1751368245330,-460.0,0.00018962,2]
[368804661,1751368245340,-460.0,0.00018962,2]
[368804663,1751368245349,-460.0,0.00018962,2]
[368804665,1751368245358,-460.0,0.00018962,2]
[368804667,1751368245367,-460.0,0.00018962,2]
[368804668,1751368245376,-591.39,0.00018962,2]
[368804670,1751368245385,-1540.0,0.00018968,2]
[368804672,1751368245396,-160.0,0.00018978,2]
[368804674,1751368245406,-160.0,0.00018978,2]
[368804676,1751368245415,-837.20943635,0.00018978,2]
[368804678,1751368245424,-847.53272281,0.00018978,2]
[368804680,1751368245433,-230.32585361,0.00018978,2]
[368804682,1751368245443,-215.01728679,0.00018978,2]
[368804684,1751368245452,-160.0,0.00018978,2]
[368804686,1751368245461,-213.87551669,0.00018978,2]
[368804688,1751368245470,-160.0,0.00018978,2]
[368804689,1751368245480,-289.66347564,0.00019028,2]
[368804691,1751368245490,-460.0,0.00019029,2]
[368804693,1751368245500,-460.0,0.00019029,2]
[368804695,1751368245509,-160.0,0.0001904,2]
[368804697,1751368245518,-12571.40790328,0.0001904,2]
[368804699,1751368245527,-160.0,0.0001904,2]
[368804701,1751368245536,-160.0,0.0001904,2]
[368804702,1751368245545,-160.0,0.0001904,2]
[368804704,1751368245555,-160.0,0.0001904,2]
[368804706,1751368245564,-420.0,0.00019095,2]
[368804708,1751368245573,-243.52055539,0.0001911,2]
[368804710,1751368245582,-990.71,0.00019136,2]
[368804712,1751368245591,-460.0,0.00019136,2]
[368804713,1751368245601,-721.14,0.00019136,2]
[368804715,1751368245611,-1676.8025974,0.00019141,2]
[368804717,1751368245620,-196.0915788,0.00019178,2]
[368804719,1751368245630,-193.99,0.00019235,2]
[368804721,1751368245639,-460.0,0.00019235,2]
[368804723,1751368245648,-460.0,0.00019235,2]
[368804725,1751368245657,-628.41,0.00019235,2]
[368804726,1751368245667,-506.63,0.00019235,2]
[368804728,1751368245677,-565.05,0.00019235,2]
[368804730,1751368245686,-460.0,0.00019235,2]
[368804732,1751368245696,-492.86,0.00019235,2]
[368804734,1751368245706,-460.0,0.00019235,2]
[368804736,1751368245715,-366.41,0.00019235,2]
[368804738,1751368245729,-460.0,0.00019235,2]
[368804740,1751368245739,-460.0,0.00019235,2]
[368804742,1751368245748,-460.0,0.00019235,2]
[368804743,1751368245757,-724.12,0.00019235,2]
[368804745,1751368245767,-460.0,0.00019235,2]
[368804747,1751368245777,-431.33,0.00019235,2]
[368804750,1751368245787,-460.0,0.00019235,2]
[368804753,1751368245796,-214.67,0.00019235,2]
[368804756,1751368245806,-460.0,0.00019235,2]
[368804759,1751368245816,-460.0,0.00019236,2]
[368804761,1751368245825,-872.81,0.00019236,2]
[368804762,1751368245835,-460.0,0.00019236,2]
[368804764,1751368245844,-460.0,0.00019236,2]
[368804766,1751368245853,-460.0,0.00019236,2]
[368804768,1751368245862,-460.0,0.00019236,2]
[368804770,1751368245871,-460.0,0.00019236,2]
[368804772,1751368245880,-460.0,0.00019236,2]
[368804774,1751368245891,-591.39,0.00019236,2]
[368804775,1751368245900,-570.15,0.00019303,2]
[368804777,1751368245909,-460.0,0.00019303,2]
[368804779,1751368245919,-100000.0,0.00019329,2]
[368804781,1751368245928,-161.05583858,0.00019373,2]
[368804783,1751368245937,-500.10070378,0.00019373,2]
[368804785,1751368245947,-600.0,0.00019373,2]
[368804787,1751368245956,-360.00832558,0.00019373,2]
[368804789,1751368245966,-500.35336161,0.00019373,2]
[368804791,1751368245975,-441.94601656,0.00019373,2]
[368804793,1751368245984,-423.65100897,0.00019373,2]
[368804794,1751368245993,-500.0,0.00019373,2]
[368804796,1751368246003,-500.0,0.00019373,2]
[368804798,1751368246012,-500.0,0.00019373,2]
[368804800,1751368246021,-500.0,0.00019373,2]
[368804802,1751368246030,-543.72233606,0.00019373,2]
[368804804,1751368246039,-500.43541712,0.00019373,2]
[368804806,1751368246048,-500.0,0.00019373,2]
[368804808,1751368246057,-500.0,0.00019373,2]
[368804810,1751368246067,-500.0,0.00019373,2]
[368804812,1751368246076,-500.0,0.00019373,2]
[368804814,1751368246085,-500.0,0.00019373,2]
[368804815,1751368246095,-484.85022,0.00019373,2]
[368804817,1751368246104,-172.32907732,0.00019373,2]
[368804819,1751368246113,-500.0,0.00019373,2]
[368804821,1751368246122,-167.46898346,0.00019373,2]
[368804823,1751368246131,-500.0,0.00019373,2]
[368804825,1751368246140,-500.9058487,0.00019373,2]
[368804827,1751368246149,-500.0,0.00019373,2]
[368804828,1751368246158,-500.3360567,0.00019373,2]
[368804830,1751368246167,-500.0,0.00019373,2]
[368804832,1751368246176,-500.0,0.00019373,2]
[368804834,1751368246186,-500.0,0.00019373,2]
[368804836,1751368246196,-500.0,0.00019373,2]
[368804838,1751368246205,-1676.8025974,0.00019383,2]
[368804840,1751368246215,-990.71,0.0001941,2]
[368804842,1751368246224,-460.0,0.0001941,2]
[368804844,1751368246234,-721.14,0.0001941,2]
[368804846,1751368246243,-800.04,0.00019499,3]
[368804848,1751368246252,-400.02,0.00019499,3]
[368804850,1751368246261,-1344.96,0.000195,2]
[368804852,1751368246270,-460.0,0.00019509,2]
[368804854,1751368246279,-460.0,0.00019509,2]
[368804856,1751368246288,-628.41,0.00019509,2]
[368804858,1751368246297,-506.63,0.00019509,2]
[368804859,1751368246306,-565.05,0.00019509,2]
[368804861,1751368246316,-203.94,0.00019509,2]
[368804863,1751368246324,-492.86,0.00019509,2]
[368804865,1751368246333,-460.0,0.00019509,2]
[368804867,1751368246343,-266.6896124,0.00019509,2]
[368804869,1751368246352,-460.0,0.00019509,2]
[368804871,1751368246361,-460.0,0.00019509,2]
[368804873,1751368246371,-724.12,0.00019509,2]
[368804877,1751368246405,-460.0,0.00019509,2]
[368804878,1751368246414,-460.0,0.00019509,2]
[368804880,1751368246424,-208.6,0.00019509,2]
[368804882,1751368246433,-460.0,0.0001951,2]
[368804884,1751368246442,-872.81,0.0001951,2]
[368804886,1751368246452,-460.0,0.0001951,2]
[368804888,1751368246461,-460.0,0.0001951,2]
[368804890,1751368246470,-460.0,0.0001951,2]
[368804892,1751368246479,-460.0,0.0001951,2]
[368804894,1751368246488,-460.0,0.0001951,2]
[368804895,1751368246496,-460.0,0.0001951,2]
[368804897,1751368246505,-591.39,0.0001951,2]
[368804899,1751368246514,-244.95773714,0.00019577,2]
[368804901,1751368246524,-1676.8025974,0.00019624,2]
[368804903,1751368246533,-500.0,0.0001968,2]
[368804905,1751368246543,-990.71,0.00019684,2]
[368804907,1751368246552,-460.0,0.00019684,2]
[368804909,1751368246561,-721.14,0.00019684,2]
[368804911,1751368246570,-460.0,0.00019783,2]
[368804913,1751368246579,-460.0,0.00019783,2]
[368804914,1751368246589,-628.41,0.00019783,2]
[368804916,1751368246598,-506.63,0.00019783,2]
[368804918,1751368246607,-565.05,0.00019783,2]
[368804920,1751368246616,-492.86,0.00019783,2]
[368804922,1751368246626,-460.0,0.00019783,2]
[368804924,1751368246635,-460.0,0.00019783,2]
[368804926,1751368246644,-460.0,0.00019783,2]
[368804928,1751368246653,-724.12,0.00019783,2]
[368804930,1751368246662,-460.0,0.00019783,2]
[368804931,1751368246671,-460.0,0.00019783,2]
[368804933,1751368246680,-279.29,0.00019784,2]
[368804935,1751368246689,-872.81,0.00019784,2]
[368804937,1751368246699,-183.73,0.00019784,2]
[368804939,1751368246708,-498.29,0.00019784,2]
[368804941,1751368246718,-460.0,0.00019784,2]
[368804943,1751368246732,-460.0,0.00019784,2]
[368804945,1751368246741,-460.0,0.00019784,2]
[368804947,1751368246750,-326.3,0.00019784,2]
[368804949,1751368246759,-591.39,0.00019784,2]
[368804951,1751368246769,-1676.8025974,0.00019866,2]
[368804953,1751368246780,-1000.0,0.00019921,2]
[368804955,1751368246789,-1000.0,0.00019921,2]
[368804956,1751368246798,-990.71,0.00019958,2]
[368804958,1751368246809,-460.0,0.00019958,2]
[368804960,1751368246818,-721.14,0.00019958,2]
[368804962,1751368246827,-18500.18108835,0.0002,2]
[368804964,1751368246837,-460.0,0.00020057,2]
[368804966,1751368246846,-460.0,0.00020057,2]
[368804968,1751368246855,-628.41,0.00020057,2]
[368804970,1751368246864,-506.63,0.00020057,2]
[368804972,1751368246874,-565.05,0.00020057,2]
[368804974,1751368246883,-492.86,0.00020057,2]
[368804976,1751368246893,-460.0,0.00020057,2]
[368804978,1751368246903,-364.44,0.00020057,2]
[368804980,1751368246912,-460.0,0.00020057,2]
[368804981,1751368246921,-724.12,0.00020057,2]
[368804983,1751368246930,-495.71,0.00020057,2]
[368804985,1751368246940,-460.0,0.00020057,2]
[368804987,1751368246949,-872.81,0.00020058,2]
[368804989,1751368246959,-460.0,0.00020058,2]
[368804991,1751368246968,-460.0,0.00020058,2]
[368804993,1751368246977,-460.0,0.00020058,2]
[368804995,1751368246987,-591.39,0.00020058,2]
[368804997,1751368246996,-1799.29676021,0.000201,19]
[368804999,1751368247006,-1676.8025974,0.00020107,2]
[368805001,1751368247015,-528.391534,0.00020187,2]
[368805003,1751368247023,-990.71,0.00020232,2]
[368805005,1751368247033,-460.0,0.00020232,2]
[368805007,1751368247042,-721.14,0.00020232,2]
[368805008,1751368247052,-347.54,0.00020331,2]
[368805010,1751368247061,-460.0,0.00020331,2]
[368805012,1751368247071,-628.41,0.00020331,2]
[368805014,1751368247080,-506.63,0.00020331,2]
[368805016,1751368247090,-565.05,0.00020331,2]
[368805018,1751368247099,-492.86,0.00020331,2]
[368805020,1751368247109,-460.0,0.00020331,2]
[368805022,1751368247118,-460.0,0.00020331,2]
[368805024,1751368247128,-724.12,0.00020331,2]
[368805026,1751368247137,-460.0,0.00020331,2]
[368805028,1751368247147,-1692.73656882,0.00020331,2]
[368805030,1751368247156,-872.81,0.00020332,2]
[368805032,1751368247165,-460.0,0.00020332,2]
[368805034,1751368247174,-460.0,0.00020332,2]
[368805036,1751368247184,-460.0,0.00020332,2]
[368805038,1751368247193,-591.39,0.00020332,2]
[368805040,1751368247202,-1676.8025974,0.00020348,3]
[368805041,1751368247211,-990.71,0.00020506,2]
[368805043,1751368247221,-222.37007516,0.00020506,2]
[368805045,1751368247230,-721.14,0.00020506,2]
[368805047,1751368247240,-1676.8025974,0.0002059,3]
[368805049,1751368247249,-690.642,0.00020604,2]
[368805051,1751368247259,-5000.0,0.00020604,2]
[368805053,1751368247268,-500.0,0.00020604,2]
[368805055,1751368247277,-151.0,0.00020604,2]
[368805057,1751368247286,-298.60925501,0.00020604,2]
[368805059,1751368247295,-500.0,0.00020604,2]
[368805061,1751368247305,-500.0,0.00020604,2]
[368805063,1751368247315,-500.0,0.00020604,2]
[368805065,1751368247324,-500.0,0.00020604,2]
[368805067,1751368247333,-500.0,0.00020604,2]
[368805069,1751368247342,-500.0,0.00020604,2]
[368805070,1751368247351,-500.0,0.00020604,2]